[Event "RUS-ch Blitz Women 2018"]
[Site "Sochi"]
[Date "2018.10.07"]
[Round "1"]
[White "Mukhina, Jana"]
[Black "Shuvalova, Polina"]
[Result "0-1"]
[ECO "B31"]
[WhiteElo "2072"]
[BlackElo "2421"]
[Annotator "NA"]
[PlyCount "92"]
[EventDate "2018.10.07"]
[EventType "swiss"]
[EventCountry "RUS"]
[SourceTitle "playchess.com"]
[Source "ChessBase"]
[SourceQuality "1"]
[TimeControl "180+2"]

1. e4 {[%emt 0:00:00]} c5 {[%emt 0:00:00]} 2. Nf3 {[%emt 0:00:01]} Nc6 {[%emt 0:00:00]} 3. Bb5 {[%emt 0:00:01]} g6 {[%emt 0:00:00]} 4. Bxc6 {[%emt 0:00:01]} dxc6 {[%emt 0:00:01]} 5. d3 {[%emt 0:00:04]} Bg7 {[%emt 0:00:01]} 6. h3 {[%emt 0:00:03]} Nf6 {[%emt 0:00:02]} 7. Nc3 {[%emt 0:00:08]} O-O {[%emt 0:00:02]} 8. Be3 {[%emt 0:00:00]} b6 {[%emt 0:00:02]} 9. Qd2 {[%emt 0:00:03]} Nd7 {[%emt 0:00:43]} 10. Bh6 {[%emt 0:00:10]} e5 {[%emt 0:00:05]} 11. Bxg7 Kxg7 {[%emt 0:00:01]} 12. O-O-O {[%emt 0:00:31]} Qe7 {[%emt 0:00:01]} 13. Nh2 {[%emt 0:00:07]} Nf6 {[%emt 0:00:20]} 14. g4 {[%emt 0:00:29]} a5 {[%emt 0:00:07]} 15. f4 {[%emt 0:00:03]} exf4 {[%emt 0:00:13]} 16. Qxf4 {[%emt 0:00:03]} a4 {[%emt 0:00:10]} 17. h4 {[%emt 0:00:26]} a3 {[%emt 0:00:02]} 18. b3 {[%emt 0:00:32]} Be6 {[%emt 0:00:09]} 19. h5 {[%emt 0:00:20]} Ng8 {[%emt 0:00:18]} 20. g5 {[%emt 0:00:20]} f6 {[%emt 0:00:10]} 21. hxg6 {[%emt 0:00:06]} fxg5 {[%emt 0:00:31]} 22. Qe5+ {[%emt 0:00:00]} Qf6 {[%emt 0:00:01]} 23. Qc7+ {[%emt 0:00:06]} Kxg6 {[%emt 0:00:27]} 24. d4 {[%emt 0:00:09]} Rf7 {[%emt 0:00:03]} 25. Qg3 {[%emt 0:00:02]} cxd4 {[%emt 0:00:05]} 26. e5 {[%emt 0:00:02]} Qf4+ {[%emt 0:00:01]} 27. Qxf4 {[%emt 0:00:01]} Rxf4 {[%emt 0:00:01]} 28. Ne2 {[%emt 0:00:00]} Rf2 {[%emt 0:00:04]} 29. Nxd4 {[%emt 0:00:01]} Bd5 {[%emt 0:00:04]} 30. Ng4 {[%emt 0:00:05]} Bxh1 {[%emt 0:00:03]} 31. Rxh1 {[%emt 0:00:00]} Rf4 {[%emt 0:00:07]} 32. Nxc6 {[%emt 0:00:05]} Rxg4 {[%emt 0:00:02]} 33. e6 {[%emt 0:00:01]} Re8 {[%emt 0:00:01]} 34. Re1 {[%emt 0:00:01]} Nf6 {[%emt 0:00:02]} 35. e7 {[%emt 0:00:03]} Kf7 {[%emt 0:00:02]} 36. c4 {[%emt 0:00:02]} Rf4 {[%emt 0:00:01]} 37. Rh1 {[%emt 0:00:01]} h5 {[%emt 0:00:01]} 38. Rg1 {[%emt 0:00:00]} g4 {[%emt 0:00:01]} 39. Rd1 {[%emt 0:00:01]} Rf5 {[%emt 0:00:01]} 40. Rd6 {[%emt 0:00:04]} Rc5 {[%emt 0:00:02]} 41. Nd4 {[%emt 0:00:05]} Rxe7 {[%emt 0:00:02]} 42. Rxb6 {[%emt 0:00:01]} Rce5 {[%emt 0:00:02]} 43. c5 {[%emt 0:00:01]} Rxc5+ {[%emt 0:00:02]} 44. Kd2 {[%emt 0:00:00]} Rd5 {[%emt 0:00:02]} 45. Kd3 {[%emt 0:00:01]} Red7 {[%emt 0:00:01]} 46. Rb4 {[%emt 0:00:01]} g3 {[%emt 0:00:02]} 0-1

[Event "RUS-ch Blitz Women 2018"]
[Site "Sochi"]
[Date "2018.10.07"]
[Round "1"]
[White "Chan, Naruna"]
[Black "Maltsevskaya, Aleksandra"]
[Result "0-1"]
[ECO "B40"]
[WhiteElo "1967"]
[BlackElo "2290"]
[Annotator "NA"]
[PlyCount "68"]
[EventDate "2018.10.07"]
[EventType "swiss"]
[EventCountry "RUS"]
[SourceTitle "playchess.com"]
[Source "ChessBase"]
[SourceQuality "1"]
[TimeControl "180+2"]

1. e4 {[%emt 0:00:00]} c5 {[%emt 0:00:00]} 2. Nf3 {[%emt 0:00:01]} e6 {[%emt 0:00:02]} 3. g3 {[%emt 0:00:02]} Nc6 {[%emt 0:00:06]} 4. Bg2 {[%emt 0:00:05]} Nge7 {[%emt 0:00:02]} 5. O-O {[%emt 0:00:04]} d5 {[%emt 0:00:02]} 6. exd5 {[%emt 0:00:22]} exd5 {[%emt 0:00:02]} 7. d4 {[%emt 0:00:04]} c4 {[%emt 0:00:28]} 8. Re1 {[%emt 0:00:46]} g6 {[%emt 0:00:06]} 9. c3 {[%emt 0:00:05]} Bg7 {[%emt 0:00:02]} 10. Ne5 {[%emt 0:00:02]} O-O {[%emt 0:00:09]} 11. Nd2 {[%emt 0:00:04]} Be6 {[%emt 0:00:41]} 12. Ndf3 {[%emt 0:00:02]} Qc8 {[%emt 0:00:37]} 13. Bf4 {[%emt 0:00:27]} Bf5 {[%emt 0:00:18]} 14. Nh4 {[%emt 0:00:16]} Be6 {[%emt 0:00:07]} 15. Qd2 {[%emt 0:00:04]} Re8 {[%emt 0:00:29]} 16. Bh6 {[%emt 0:00:07]} Bh8 {[%emt 0:00:01]} 17. Re2 {[%emt 0:00:15]} Nxe5 {[%emt 0:00:02]} 18. dxe5 {[%emt 0:00:02]} Nc6 {[%emt 0:00:01]} 19. f4 {[%emt 0:00:23]} Qd8 {[%emt 0:00:01]} 20. Bg5 {[%emt 0:00:09]} Qb6+ {[%emt 0:00:02]} 21. Kh1 {[%emt 0:00:02]} d4 {[%emt 0:00:04]} 22. cxd4 {[%emt 0:00:07]} Nxd4 {[%emt 0:00:02]} 23. Rf2 {[%emt 0:00:05]} Bg7 {[%emt 0:00:06]} 24. Rd1 {[%emt 0:00:02]} Nb5 {[%emt 0:00:04]} 25. Nf3 {[%emt 0:00:06]} c3 {[%emt 0:00:03]} 26. bxc3 {[%emt 0:00:02]} Nxc3 {[%emt 0:00:01]} 27. Rdf1 {[%emt 0:00:03]} Ne4 {[%emt 0:00:02]} 28. Qe1 {[%emt 0:00:02]} Nxf2+ {[%emt 0:00:01]} 29. Rxf2 {[%emt 0:00:02]} Rac8 {[%emt 0:00:01]} 30. Nd2 {[%emt 0:00:05]} h6 {[%emt 0:00:03]} 31. Bh4 {[%emt 0:00:03]} Qa5 {[%emt 0:00:04]} 32. Qf1 {[%emt 0:00:01]} Qa3 {[%emt 0:00:03]} 33. Ne4 {[%emt 0:00:02]} Rc1 {[%emt 0:00:01]} 34. Nf6+ {[%emt 0:00:02]} Bxf6 {[%emt 0:00:02]} 0-1

[Event "RUS-ch Blitz Women 2018"]
[Site "Sochi"]
[Date "2018.10.07"]
[Round "2"]
[White "Shuvalova, Polina"]
[Black "Mukhina, Jana"]
[Result "1-0"]
[ECO "C60"]
[WhiteElo "2421"]
[BlackElo "2072"]
[Annotator "NA"]
[PlyCount "63"]
[EventDate "2018.10.07"]
[EventType "swiss"]
[EventCountry "RUS"]
[SourceTitle "playchess.com"]
[Source "ChessBase"]
[SourceQuality "1"]
[TimeControl "180+2"]

1. e4 {[%emt 0:00:00]} e5 {[%emt 0:00:00]} 2. Nf3 {[%emt 0:00:00]} Nc6 {[%emt 0:00:00]} 3. Bb5 g6 4. d4 {[%emt 0:00:10]} exd4 {[%emt 0:00:00]} 5. Bg5 {[%emt 0:00:13]} Be7 {[%emt 0:00:01]} 6. Bxe7 {[%emt 0:00:02]} Qxe7 {[%emt 0:00:05]} 7. Bxc6 {[%emt 0:00:01]} dxc6 {[%emt 0:00:01]} 8. Qxd4 {[%emt 0:00:05]} Nf6 {[%emt 0:00:02]} 9. Nc3 {[%emt 0:00:06]} Bg4 {[%emt 0:00:06]} 10. Nd2 {[%emt 0:00:03]} c5 {[%emt 0:00:05]} 11. Qe3 {[%emt 0:00:02]} O-O-O {[%emt 0:00:01]} 12. h3 {[%emt 0:00:05]} Bd7 {[%emt 0:00:01]} 13. O-O-O {[%emt 0:00:04]} Bc6 {[%emt 0:00:07]} 14. Rhe1 {[%emt 0:00:02]} b6 {[%emt 0:00:12]} 15. f3 {[%emt 0:00:02]} h5 {[%emt 0:00:10]} 16. Qg5 {[%emt 0:00:04]} Rhe8 {[%emt 0:00:51]} 17. h4 {[%emt 0:00:05]} Qe6 {[%emt 0:00:28]} 18. b3 {[%emt 0:00:05]} Qe5 {[%emt 0:00:20]} 19. Qxe5 {[%emt 0:00:07]} Rxe5 {[%emt 0:00:01]} 20. Nc4 {[%emt 0:00:03]} Ree8 {[%emt 0:00:03]} 21. Rxd8+ {[%emt 0:00:08]} Rxd8 {[%emt 0:00:01]} 22. Rd1 {[%emt 0:00:06]} Rxd1+ {[%emt 0:00:09]} 23. Kxd1 {[%emt 0:00:02]} Nd7 {[%emt 0:00:01]} 24. Kd2 {[%emt 0:00:04]} Kd8 {[%emt 0:00:06]} 25. Ke3 {[%emt 0:00:01]} Ke7 {[%emt 0:00:01]} 26. Kf4 {[%emt 0:00:04]} Kf6 {[%emt 0:00:13]} 27. Ne3 {[%emt 0:00:01]} Ke6 {[%emt 0:00:17]} 28. Kg5 {[%emt 0:00:23]} Nf8 {[%emt 0:00:26]} 29. Ncd5 {[%emt 0:00:05]} Ke5 {[%emt 0:00:03]} 30. c3 {[%emt 0:00:17]} Ne6+ {[%emt 0:00:02]} 31. Kh6 {[%emt 0:00:01]} Nf4 {[%emt 0:00:02]} 32. Nc4+ {[%emt 0:00:05]} 1-0

[Event "RUS-ch Blitz Women 2018"]
[Site "Sochi"]
[Date "2018.10.07"]
[Round "2"]
[White "Ambartsumova, Karina"]
[Black "Shafigullina, Zarina"]
[Result "1-0"]
[ECO "A28"]
[WhiteElo "2379"]
[BlackElo "2150"]
[Annotator "NA"]
[PlyCount "131"]
[EventDate "2018.10.07"]
[EventType "swiss"]
[EventCountry "RUS"]
[SourceTitle "playchess.com"]
[Source "ChessBase"]
[SourceQuality "1"]
[TimeControl "180+2"]

1. c4 {[%emt 0:00:00]} e5 {[%emt 0:00:00]} 2. Nc3 {[%emt 0:00:01]} Nf6 {[%emt 0:00:00]} 3. Nf3 {[%emt 0:00:02]} Nc6 {[%emt 0:00:02]} 4. a3 {[%emt 0:00:01]} a5 {[%emt 0:00:01]} 5. e3 {[%emt 0:00:04]} d5 {[%emt 0:00:03]} 6. cxd5 {[%emt 0:00:03]} Nxd5 {[%emt 0:00:02]} 7. Qc2 {[%emt 0:00:02]} Be7 {[%emt 0:00:13]} 8. Be2 {[%emt 0:00:11]} O-O {[%emt 0:00:04]} 9. O-O {[%emt 0:00:03]} Bg4 {[%emt 0:00:08]} 10. d3 {[%emt 0:00:09]} Kh8 {[%emt 0:00:19]} 11. Bd2 {[%emt 0:00:02]} f5 {[%emt 0:00:04]} 12. Rfe1 {[%emt 0:00:17]} Rb8 {[%emt 0:00:07]} 13. Rab1 {[%emt 0:00:15]} Bf6 {[%emt 0:00:07]} 14. Rbd1 {[%emt 0:00:56]} Re8 {[%emt 0:00:02]} 15. Nxd5 {[%emt 0:00:05]} Qxd5 {[%emt 0:00:01]} 16. e4 {[%emt 0:00:16]} Qf7 {[%emt 0:00:12]} 17. Bc3 {[%emt 0:00:05]} Qg6 {[%emt 0:00:09]} 18. exf5 {[%emt 0:00:10]} Bxf5 {[%emt 0:00:05]} 19. Nd2 {[%emt 0:00:05]} Rbc8 {[%emt 0:00:45]} 20. Ne4 {[%emt 0:00:21]} Nd4 {[%emt 0:00:01]} 21. Bxd4 {[%emt 0:00:02]} exd4 {[%emt 0:00:01]} 22. Bf3 {[%emt 0:00:06]} Be5 {[%emt 0:00:18]} 23. g3 {[%emt 0:00:13]} Bg4 {[%emt 0:00:05]} 24. Bxg4 {[%emt 0:00:02]} Qxg4 {[%emt 0:00:01]} 25. Qe2 {[%emt 0:00:01]} Qg6 {[%emt 0:00:32]} 26. Qf1 {[%emt 0:00:01]} c5 {[%emt 0:00:04]} 27. b3 {[%emt 0:00:03]} b6 {[%emt 0:00:03]} 28. f4 {[%emt 0:00:04]} Bb8 {[%emt 0:00:02]} 29. Qf3 {[%emt 0:00:02]} b5 {[%emt 0:00:05]} 30. Rc1 {[%emt 0:00:03]} Ba7 {[%emt 0:00:06]} 31. Kh1 {[%emt 0:00:02]} h6 {[%emt 0:00:09]} 32. Rf1 {[%emt 0:00:01]} Rc7 {[%emt 0:00:05]} 33. f5 {[%emt 0:00:02]} Qc6 {[%emt 0:00:01]} 34. f6 {[%emt 0:00:05]} gxf6 {[%emt 0:00:04]} 35. Qxf6+ {[%emt 0:00:01]} Qxf6 {[%emt 0:00:01]} 36. Rxf6 {[%emt 0:00:01]} c4 {[%emt 0:00:03]} 37. bxc4 {[%emt 0:00:04]} bxc4 {[%emt 0:00:03]} 38. Nd6 {[%emt 0:00:01]} Rb8 {[%emt 0:00:04]} 39. Nxc4 {[%emt 0:00:01]} Rb3 {[%emt 0:00:03]} 40. Rd1 {[%emt 0:00:06]} a4 {[%emt 0:00:02]} 41. Rxh6+ Kg7 42. Ra6 {[%emt 0:00:08]} Rcb7 {[%emt 0:00:04]} 43. h4 {[%emt 0:00:03]} Rb1 {[%emt 0:00:02]} 44. Rxb1 {[%emt 0:00:02]} Rxb1+ {[%emt 0:00:01]} 45. Kg2 {[%emt 0:00:01]} Bc5 {[%emt 0:00:02]} 46. Rxa4 {[%emt 0:00:01]} Rb3 {[%emt 0:00:01]} 47. Ra5 {[%emt 0:00:05]} Be7 {[%emt 0:00:03]} 48. Ra7 {[%emt 0:00:02]} Kf6 {[%emt 0:00:02]} 49. Ra6+ {[%emt 0:00:01]} Kg7 {[%emt 0:00:03]} 50. Ne5 {[%emt 0:00:03]} Bf6 {[%emt 0:00:01]} 51. Ng4 {[%emt 0:00:01]} Be7 {[%emt 0:00:02]} 52. Nf2 {[%emt 0:00:02]} Rxa3 {[%emt 0:00:03]} 53. Rxa3 {[%emt 0:00:01]} Bxa3 54. Kf3 {[%emt 0:00:01]} Kf6 {[%emt 0:00:02]} 55. Ke4 {[%emt 0:00:00]} Bb2 {[%emt 0:00:01]} 56. Ng4+ {[%emt 0:00:02]} Kg6 {[%emt 0:00:02]} 57. Ne5+ Kh5 58. Kf5 {[%emt 0:00:03]} Bc1 {[%emt 0:00:02]} 59. Nf3 {[%emt 0:00:02]} Be3 {[%emt 0:00:01]} 60. g4+ {[%emt 0:00:00]} Kh6 {[%emt 0:00:01]} 61. Ke4 {[%emt 0:00:02]} Bf2 {[%emt 0:00:02]} 62. h5 {[%emt 0:00:02]} Be3 {[%emt 0:00:02]} 63. Nxd4 {[%emt 0:00:02]} Bf2 {[%emt 0:00:01]} 64. Nf3 {[%emt 0:00:01]} Bg3 {[%emt 0:00:03]} 65. d4 {[%emt 0:00:02]} Bd6 {[%emt 0:00:01]} 66. d5 {[%emt 0:00:01]} 1-0

[Event "RUS-ch Blitz Women 2018"]
[Site "Sochi"]
[Date "2018.10.07"]
[Round "2"]
[White "Voit, Daria"]
[Black "Gubernatorova, Lyudmila"]
[Result "1-0"]
[ECO "A39"]
[WhiteElo "2352"]
[BlackElo "2200"]
[Annotator "NA"]
[PlyCount "153"]
[EventDate "2018.10.07"]
[EventType "swiss"]
[EventCountry "RUS"]
[SourceTitle "playchess.com"]
[Source "ChessBase"]
[SourceQuality "1"]
[TimeControl "180+2"]

1. Nf3 {[%emt 0:00:00]} Nf6 {[%emt 0:00:02]} 2. c4 {[%emt 0:00:00]} c5 {[%emt 0:00:01]} 3. Nc3 {[%emt 0:00:02]} g6 {[%emt 0:00:02]} 4. g3 {[%emt 0:00:01]} Bg7 {[%emt 0:00:00]} 5. Bg2 {[%emt 0:00:01]} O-O {[%emt 0:00:01]} 6. O-O {[%emt 0:00:02]} Nc6 {[%emt 0:00:04]} 7. d4 {[%emt 0:00:11]} cxd4 {[%emt 0:00:07]} 8. Nxd4 {[%emt 0:00:01]} Nxd4 {[%emt 0:00:05]} 9. Qxd4 {[%emt 0:00:02]} d6 {[%emt 0:00:00]} 10. Qd2 {[%emt 0:00:15]} Be6 {[%emt 0:00:23]} 11. b3 {[%emt 0:00:05]} Rb8 {[%emt 0:00:14]} 12. Bb2 {[%emt 0:00:02]} a6 {[%emt 0:00:01]} 13. Rfd1 {[%emt 0:00:09]} Qc8 {[%emt 0:00:12]} 14. Rac1 {[%emt 0:00:04]} Bh3 {[%emt 0:00:02]} 15. Bh1 {[%emt 0:00:01]} Qg4 {[%emt 0:00:12]} 16. Qe3 {[%emt 0:00:12]} Qh5 {[%emt 0:00:16]} 17. Bf3 {[%emt 0:00:17]} Bg4 {[%emt 0:00:03]} 18. Bh1 {[%emt 0:00:17]} Be6 {[%emt 0:00:13]} 19. Bf3 {[%emt 0:00:15]} Bg4 {[%emt 0:00:02]} 20. Nd5 {[%emt 0:00:39]} Rfe8 {[%emt 0:00:40]} 21. Nxf6+ {[%emt 0:00:12]} exf6 {[%emt 0:00:01]} 22. Bxg4 {[%emt 0:00:08]} Qxg4 {[%emt 0:00:06]} 23. Qf3 {[%emt 0:00:02]} Qxf3 {[%emt 0:00:18]} 24. exf3 {[%emt 0:00:01]} Re2 {[%emt 0:00:01]} 25. Ba3 {[%emt 0:00:19]} Rxa2 {[%emt 0:00:07]} 26. Bxd6 {[%emt 0:00:01]} Re8 {[%emt 0:00:05]} 27. Re1 {[%emt 0:00:02]} Ree2 {[%emt 0:00:09]} 28. Rxe2 {[%emt 0:00:02]} Rxe2 {[%emt 0:00:01]} 29. Rd1 {[%emt 0:00:09]} h5 {[%emt 0:00:06]} 30. Bc5 {[%emt 0:00:03]} Rb2 {[%emt 0:00:09]} 31. Rd3 f5 {[%emt 0:00:04]} 32. h4 {[%emt 0:00:08]} f4 {[%emt 0:00:01]} 33. Kg2 {[%emt 0:00:08]} fxg3 {[%emt 0:00:02]} 34. Kxg3 {[%emt 0:00:01]} Be5+ {[%emt 0:00:00]} 35. Kg2 {[%emt 0:00:01]} Kg7 {[%emt 0:00:03]} 36. Be3 {[%emt 0:00:05]} Bf6 {[%emt 0:00:01]} 37. Kg3 {[%emt 0:00:01]} Be5+ {[%emt 0:00:01]} 38. f4 {[%emt 0:00:00]} Bf6 {[%emt 0:00:01]} 39. Bc5 {[%emt 0:00:02]} Rb1 {[%emt 0:00:01]} 40. Bb6 {[%emt 0:00:06]} Rg1+ {[%emt 0:00:02]} 41. Kf3 {[%emt 0:00:03]} Rg4 {[%emt 0:00:02]} 42. Rd7 {[%emt 0:00:01]} Rxh4 {[%emt 0:00:03]} 43. Kg3 {[%emt 0:00:03]} Rg4+ {[%emt 0:00:01]} 44. Kf3 {[%emt 0:00:01]} g5 {[%emt 0:00:03]} 45. fxg5 {[%emt 0:00:02]} Bxg5 {[%emt 0:00:02]} 46. Rxb7 {[%emt 0:00:01]} Rf4+ {[%emt 0:00:01]} 47. Kg2 {[%emt 0:00:02]} Rg4+ {[%emt 0:00:02]} 48. Kf3 {[%emt 0:00:05]} Rf4+ {[%emt 0:00:01]} 49. Kg2 Rg4+ 50. Kf1 {[%emt 0:00:05]} h4 {[%emt 0:00:03]} 51. Bc7 {[%emt 0:00:01]} h3 {[%emt 0:00:02]} 52. Rb6 {[%emt 0:00:02]} a5 {[%emt 0:00:03]} 53. Rb5 {[%emt 0:00:02]} Bf4 {[%emt 0:00:02]} 54. Bxf4 {[%emt 0:00:01]} Rxf4 {[%emt 0:00:01]} 55. Kg1 {[%emt 0:00:02]} h2+ {[%emt 0:00:02]} 56. Kxh2 {[%emt 0:00:00]} Rxf2+ 57. Kg3 {[%emt 0:00:04]} Rb2 {[%emt 0:00:02]} 58. c5 {[%emt 0:00:03]} Kf6 {[%emt 0:00:08]} 59. Kf4 {[%emt 0:00:01]} Rf2+ {[%emt 0:00:01]} 60. Ke4 {[%emt 0:00:01]} Ke6 {[%emt 0:00:02]} 61. Rxa5 {[%emt 0:00:01]} f5+ {[%emt 0:00:01]} 62. Kd4 {[%emt 0:00:02]} Rd2+ {[%emt 0:00:02]} 63. Kc4 {[%emt 0:00:02]} f4 {[%emt 0:00:01]} 64. Ra8 {[%emt 0:00:01]} Rc2+ {[%emt 0:00:03]} 65. Kb5 {[%emt 0:00:01]} Kd5 66. b4 f3 {[%emt 0:00:03]} 67. Rd8+ {[%emt 0:00:02]} Ke4 {[%emt 0:00:01]} 68. Rf8 {[%emt 0:00:01]} f2 {[%emt 0:00:02]} 69. Kb6 {[%emt 0:00:01]} Kd5 {[%emt 0:00:05]} 70. Rf7 {[%emt 0:00:05]} Kc4 {[%emt 0:00:05]} 71. b5 {[%emt 0:00:01]} Kb4 {[%emt 0:00:03]} 72. c6 {[%emt 0:00:01]} Rc5 {[%emt 0:00:04]} 73. Rf4+ {[%emt 0:00:01]} Rc4 {[%emt 0:00:03]} 74. Rxf2 {[%emt 0:00:01]} Rh4 {[%emt 0:00:09]} 75. Rf5 {[%emt 0:00:01]} Rh7 {[%emt 0:00:02]} 76. c7 {[%emt 0:00:01]} Rh8 {[%emt 0:00:08]} 77. Kb7 {[%emt 0:00:02]} 1-0

[Event "RUS-ch Blitz Women 2018"]
[Site "Sochi"]
[Date "2018.10.07"]
[Round "2"]
[White "Maltsevskaya, Aleksandra"]
[Black "Chan, Naruna"]
[Result "1-0"]
[ECO "A27"]
[WhiteElo "2290"]
[BlackElo "1967"]
[Annotator "NA"]
[PlyCount "65"]
[EventDate "2018.10.07"]
[EventType "swiss"]
[EventCountry "RUS"]
[SourceTitle "playchess.com"]
[Source "ChessBase"]
[SourceQuality "1"]
[TimeControl "180+2"]

1. c4 {[%emt 0:00:00]} e5 {[%emt 0:00:00]} 2. Nc3 {[%emt 0:00:01]} Nc6 {[%emt 0:00:00]} 3. Nf3 {[%emt 0:00:06]} d6 {[%emt 0:00:01]} 4. g3 {[%emt 0:00:02]} f5 {[%emt 0:00:01]} 5. d3 {[%emt 0:00:02]} Be7 {[%emt 0:00:01]} 6. Bg2 {[%emt 0:00:01]} Nf6 {[%emt 0:00:01]} 7. O-O {[%emt 0:00:02]} O-O {[%emt 0:00:01]} 8. a3 {[%emt 0:00:02]} a5 {[%emt 0:00:02]} 9. Rb1 {[%emt 0:00:01]} Kh8 {[%emt 0:00:01]} 10. b4 {[%emt 0:00:01]} axb4 {[%emt 0:00:01]} 11. axb4 {[%emt 0:00:02]} Qe8 {[%emt 0:00:32]} 12. b5 {[%emt 0:00:31]} Nb8 {[%emt 0:00:06]} 13. Nd2 {[%emt 0:00:36]} Nbd7 {[%emt 0:00:36]} 14. Nb3 {[%emt 0:00:03]} Nc5 {[%emt 0:00:30]} 15. Nxc5 {[%emt 0:00:11]} dxc5 {[%emt 0:00:01]} 16. Nd5 {[%emt 0:00:07]} Nxd5 {[%emt 0:00:05]} 17. cxd5 {[%emt 0:00:02]} Bd7 {[%emt 0:00:09]} 18. b6 {[%emt 0:00:02]} Qd8 {[%emt 0:00:15]} 19. bxc7 {[%emt 0:00:22]} Qxc7 {[%emt 0:00:03]} 20. Qb3 {[%emt 0:00:02]} Rfb8 {[%emt 0:00:10]} 21. Be3 {[%emt 0:00:31]} Bd6 {[%emt 0:00:05]} 22. Qb6 {[%emt 0:00:10]} Qxb6 {[%emt 0:00:11]} 23. Rxb6 {[%emt 0:00:01]} Bc7 {[%emt 0:00:01]} 24. Rb2 {[%emt 0:00:02]} b6 {[%emt 0:00:04]} 25. d6 {[%emt 0:00:02]} Bxd6 {[%emt 0:00:08]} 26. Bxa8 {[%emt 0:00:02]} Rxa8 {[%emt 0:00:01]} 27. Rxb6 {[%emt 0:00:01]} Bf8 {[%emt 0:00:09]} 28. Rfb1 {[%emt 0:00:03]} Kg8 {[%emt 0:00:12]} 29. Rb7 {[%emt 0:00:03]} Be6 {[%emt 0:00:09]} 30. Rc7 {[%emt 0:00:03]} Ra5 {[%emt 0:00:11]} 31. f3 {[%emt 0:00:03]} h6 {[%emt 0:00:05]} 32. Rb8 {[%emt 0:00:06]} Ra1+ {[%emt 0:00:06]} 33. Kf2 {[%emt 0:00:02]} 1-0

[Event "RUS-ch Blitz Women 2018"]
[Site "Sochi"]
[Date "2018.10.07"]
[Round "2"]
[White "Borisova, Ekaterina"]
[Black "Maletina, Tatiana"]
[Result "0-1"]
[ECO "C18"]
[WhiteElo "2256"]
[BlackElo "2270"]
[Annotator "NA"]
[PlyCount "95"]
[EventDate "2018.10.07"]
[EventType "swiss"]
[EventCountry "RUS"]
[SourceTitle "playchess.com"]
[Source "ChessBase"]
[SourceQuality "1"]
[TimeControl "180+2"]

1. e4 {[%emt 0:00:00]} e6 {[%emt 0:00:00]} 2. d4 {[%emt 0:00:00]} d5 {[%emt 0:00:01]} 3. Nc3 {[%emt 0:00:00]} Bb4 {[%emt 0:00:01]} 4. e5 {[%emt 0:00:06]} c5 {[%emt 0:00:01]} 5. a3 {[%emt 0:00:00]} Bxc3+ {[%emt 0:00:02]} 6. bxc3 {[%emt 0:00:01]} Qa5 {[%emt 0:00:01]} 7. Bd2 {[%emt 0:00:11]} Qa4 {[%emt 0:00:02]} 8. Qg4 {[%emt 0:00:01]} Kf8 {[%emt 0:00:06]} 9. Qd1 {[%emt 0:00:00]} Nc6 {[%emt 0:00:08]} 10. Qb1 {[%emt 0:00:33]} c4 {[%emt 0:00:14]} 11. f4 {[%emt 0:00:33]} Nge7 {[%emt 0:00:04]} 12. Be2 {[%emt 0:00:04]} h5 {[%emt 0:00:03]} 13. Nf3 {[%emt 0:00:10]} b6 {[%emt 0:00:10]} 14. Nh4 {[%emt 0:00:10]} Nf5 {[%emt 0:00:16]} 15. Nxf5 {[%emt 0:00:07]} exf5 {[%emt 0:00:01]} 16. O-O {[%emt 0:00:02]} Be6 {[%emt 0:00:01]} 17. Qb2 {[%emt 0:00:07]} Ke7 {[%emt 0:00:05]} 18. Rfb1 {[%emt 0:00:01]} Kd7 {[%emt 0:00:02]} 19. Qb5 {[%emt 0:00:05]} Qxb5 {[%emt 0:00:28]} 20. Rxb5 {[%emt 0:00:02]} h4 {[%emt 0:00:02]} 21. a4 {[%emt 0:00:08]} Rag8 {[%emt 0:00:21]} 22. Kf2 {[%emt 0:00:05]} Rh6 {[%emt 0:00:09]} 23. Bf3 {[%emt 0:00:01]} Kc7 {[%emt 0:00:18]} 24. Bxd5 {[%emt 0:00:09]} a6 {[%emt 0:00:01]} 25. Bxe6 {[%emt 0:00:02]} axb5 {[%emt 0:00:01]} 26. Bxf7 {[%emt 0:00:04]} Ra8 {[%emt 0:00:04]} 27. d5 {[%emt 0:00:05]} Nd8 {[%emt 0:00:01]} 28. d6+ {[%emt 0:00:06]} Kd7 {[%emt 0:00:12]} 29. Bd5 {[%emt 0:00:17]} Rxa4 {[%emt 0:00:01]} 30. Rb1 {[%emt 0:00:01]} Ra2 {[%emt 0:00:09]} 31. Rxb5 {[%emt 0:00:05]} Rxc2 {[%emt 0:00:01]} 32. Ke3 {[%emt 0:00:03]} g5 {[%emt 0:00:33]} 33. fxg5 {[%emt 0:00:01]} Rg6 {[%emt 0:00:01]} 34. Bxc4 {[%emt 0:00:30]} Rxg5 {[%emt 0:00:07]} 35. Bd3 {[%emt 0:00:10]} Ra2 {[%emt 0:00:05]} 36. Be1 {[%emt 0:00:05]} Raxg2 {[%emt 0:00:11]} 37. Bxh4 {[%emt 0:00:02]} f4+ {[%emt 0:00:00]} 38. Kd4 {[%emt 0:00:02]} Rh5 {[%emt 0:00:04]} 39. Bxd8 {[%emt 0:00:02]} Kxd8 {[%emt 0:00:01]} 40. Rxb6 {[%emt 0:00:03]} Rh6 {[%emt 0:00:05]} 41. Rb8+ {[%emt 0:00:03]} Kd7 {[%emt 0:00:01]} 42. Bb5+ {[%emt 0:00:02]} Ke6 {[%emt 0:00:00]} 43. Re8+ {[%emt 0:00:02]} Kf7 {[%emt 0:00:01]} 44. d7 {[%emt 0:00:02]} Rd2+ {[%emt 0:00:02]} 45. Bd3 {[%emt 0:00:03]} Rh3 {[%emt 0:00:03]} 46. d8=Q {[%emt 0:00:06]} Rhxd3+ {[%emt 0:00:02]} 47. Ke4 {[%emt 0:00:02]} Rxd8 {[%emt 0:00:02]} 48. Rxd8 0-1